[Event "Titled Tuesday Blitz July 6 2021"]
[White "Timmermans, Mark"]
[Black "Ozates, Tuna"]
[WhiteFideId "1026399"]
[BlackFideId "6354521"]
[WhiteElo "2460"]
[BlackElo "1872"]
[Result "1-0"]
[Round "09"]
[TimeControl "180+1"]
[Date "2021.07.06"]
[WhiteClock "0:02:11"]
[BlackClock "0:00:54"]

1. b4 {[%clk 0:03:00]}  Nf6 {[%clk 0:02:44]} 2. Bb2 {[%clk 0:02:51]}  e6 {[%clk 0:02:41]} 3. b5 {[%clk 0:02:49]}  Be7 {[%clk 0:02:28]} 4. a4 {[%clk 0:02:50]}  O-O {[%clk 0:02:27]} 5. e3 {[%clk 0:02:50]}  a6 {[%clk 0:02:18]} 6. c4 {[%clk 0:02:51]}  axb5 {[%clk 0:02:18]} 7. axb5 {[%clk 0:02:49]}  Rxa1 {[%clk 0:02:18]} 8. Bxa1 {[%clk 0:02:50]}  b6 {[%clk 0:02:13]} 9. Nf3 {[%clk 0:02:51]}  Bb7 {[%clk 0:02:12]} 10. Be2 {[%clk 0:02:51]}  d5 {[%clk 0:01:49]} 11. O-O {[%clk 0:02:50]}  dxc4 {[%clk 0:01:46]} 12. Bxc4 {[%clk 0:02:51]}  c6 {[%clk 0:01:45]} 13. Nc3 {[%clk 0:02:48]}  Nbd7 {[%clk 0:01:41]} 14. d4 {[%clk 0:02:45]}  c5 {[%clk 0:01:40]} 15. Be2 {[%clk 0:02:44]}  cxd4 {[%clk 0:01:30]} 16. Nxd4 {[%clk 0:02:43]}  Qa8 {[%clk 0:01:26]} 17. Bf3 {[%clk 0:02:41]}  Ne5 {[%clk 0:01:16]} 18. Bxb7 {[%clk 0:02:35]}  Qxb7 {[%clk 0:01:17]} 19. h3 {[%clk 0:02:25]}  Rd8 {[%clk 0:01:13]} 20. Qe2 {[%clk 0:02:22]}  Bc5 {[%clk 0:01:05]} 21. Na4 {[%clk 0:02:19]}  Ne4 {[%clk 0:00:54]} 22. Nxe6 {[%clk 0:02:11]} 1-0


[Site "https://www.chess.com"]

[Event "Titled Tuesday Blitz July 6 2021"]
[White "Tokman, Ariel"]
[Black "Dovbnia, Nikita"]
[WhiteFideId "117420"]
[BlackFideId "54104599"]
[WhiteElo "2345"]
[BlackElo "2121"]
[Result "0-1"]
[Round "09"]
[TimeControl "180+1"]
[Date "2021.07.06"]
[WhiteClock "0:00:01"]
[BlackClock "0:00:02"]

1. d4 {[%clk 0:03:00]}  d5 {[%clk 0:02:59]} 2. Bf4 {[%clk 0:02:59]}  Nf6 {[%clk 0:02:59]} 3. e3 {[%clk 0:02:56]}  c5 {[%clk 0:03:00]} 4. Nd2 {[%clk 0:02:56]}  Nc6 {[%clk 0:02:58]} 5. Ngf3 {[%clk 0:02:55]}  Qb6 {[%clk 0:02:56]} 6. dxc5 {[%clk 0:02:39]}  Qxb2 {[%clk 0:02:55]} 7. Rb1 {[%clk 0:02:21]}  Qc3 {[%clk 0:02:55]} 8. Bb5 {[%clk 0:02:17]}  e6 {[%clk 0:02:42]} 9. O-O {[%clk 0:02:16]}  Be7 {[%clk 0:01:47]} 10. Ne5 {[%clk 0:01:50]}  Bd7 {[%clk 0:01:41]} 11. Nxd7 {[%clk 0:01:48]}  Nxd7 {[%clk 0:01:37]} 12. e4 {[%clk 0:01:40]}  d4 {[%clk 0:01:28]} 13. Nc4 {[%clk 0:01:31]}  d3 {[%clk 0:01:02]} 14. cxd3 {[%clk 0:01:16]}  Nxc5 {[%clk 0:00:52]} 15. Nd6+ {[%clk 0:01:04]}  Bxd6 {[%clk 0:00:51]} 16. Bxd6 {[%clk 0:01:05]}  Nd7 {[%clk 0:00:48]} 17. Qg4 {[%clk 0:00:46]}  h5 {[%clk 0:00:39]} 18. Qg3 {[%clk 0:00:27]}  h4 {[%clk 0:00:38]} 19. Qg4 {[%clk 0:00:28]}  a6 {[%clk 0:00:26]} 20. Rfc1 {[%clk 0:00:27]}  Qd4 {[%clk 0:00:21]} 21. Bxc6 {[%clk 0:00:22]}  bxc6 {[%clk 0:00:20]} 22. Ba3 {[%clk 0:00:18]}  c5 {[%clk 0:00:18]} 23. Rb7 {[%clk 0:00:15]}  Ne5 {[%clk 0:00:14]} 24. Qe2 {[%clk 0:00:03]}  Nxd3 {[%clk 0:00:08]} 25. Rd1 {[%clk 0:00:02]}  c4 {[%clk 0:00:05]} 26. Rc7 {[%clk 0:00:01]}  Nf4 {[%clk 0:00:02]} 27. Re7+ {[%clk 0:00:01]}  Kd8 {[%clk 0:00:02]} 0-1


[Site "https://www.chess.com"]

[Event "Titled Tuesday Blitz July 6 2021"]
[White "Vignesh, N R"]
[Black "Andreikin, Dmitry"]
[WhiteFideId "25012215"]
[BlackFideId "4158814"]
[WhiteElo "2401"]
[BlackElo "2782"]
[Result "0-1"]
[Round "09"]
[TimeControl "180+1"]
[Date "2021.07.06"]
[WhiteClock "0:00:42"]
[BlackClock "0:01:36"]

1. d4 {[%clk 0:03:00]}  d5 {[%clk 0:03:00]} 2. c4 {[%clk 0:03:00]}  dxc4 {[%clk 0:03:00]} 3. Nf3 {[%clk 0:03:00]}  Nf6 {[%clk 0:02:58]} 4. e3 {[%clk 0:03:00]}  e6 {[%clk 0:02:59]} 5. Bxc4 {[%clk 0:03:00]}  c5 {[%clk 0:02:59]} 6. O-O {[%clk 0:02:58]}  a6 {[%clk 0:02:59]} 7. dxc5 {[%clk 0:02:45]}  Bxc5 {[%clk 0:03:00]} 8. Qxd8+ {[%clk 0:02:41]}  Kxd8 {[%clk 0:03:01]} 9. Ne5 {[%clk 0:02:38]}  Ke7 {[%clk 0:03:00]} 10. Nd2 {[%clk 0:02:38]}  Nbd7 {[%clk 0:02:55]} 11. Nxd7 {[%clk 0:02:36]}  Bxd7 {[%clk 0:02:53]} 12. Nb3 {[%clk 0:02:36]}  Bd6 {[%clk 0:02:46]} 13. Bd2 {[%clk 0:02:34]}  Rhc8 {[%clk 0:02:41]} 14. Rfc1 {[%clk 0:02:33]}  Be5 {[%clk 0:02:31]} 15. Bc3 {[%clk 0:02:16]}  Bxc3 {[%clk 0:02:24]} 16. Rxc3 {[%clk 0:02:17]}  b5 {[%clk 0:02:11]} 17. Bd3 {[%clk 0:02:16]}  Rxc3 {[%clk 0:02:10]} 18. bxc3 {[%clk 0:02:17]}  Rc8 {[%clk 0:02:09]} 19. Rc1 {[%clk 0:02:02]}  Nd5 {[%clk 0:02:09]} 20. c4 {[%clk 0:01:51]}  Nb4 {[%clk 0:02:09]} 21. Bf1 {[%clk 0:01:44]}  Nxa2 {[%clk 0:02:03]} 22. Ra1 {[%clk 0:01:37]}  bxc4 {[%clk 0:01:59]} 23. Na5 {[%clk 0:01:27]}  c3 {[%clk 0:01:46]} 24. Nb3 {[%clk 0:01:07]}  c2 {[%clk 0:01:43]} 25. Nc1 {[%clk 0:00:51]}  Nxc1 {[%clk 0:01:43]} 26. Rxc1 {[%clk 0:00:52]}  Ba4 {[%clk 0:01:37]} 27. Bxa6 {[%clk 0:00:42]}  Rd8 {[%clk 0:01:36]} 0-1


[Site "https://www.chess.com"]

[Event "Titled Tuesday Blitz July 6 2021"]
[White "Vovk, Orest"]
[Black "Weetik, Vjacheslav"]
[WhiteFideId "14113490"]
[BlackFideId "4153472"]
[WhiteElo "2203"]
[BlackElo "2469"]
[Result "1-0"]
[Round "09"]
[TimeControl "180+1"]
[Date "2021.07.06"]
[WhiteClock "0:00:18"]
[BlackClock "0:00:12"]

1. g4 {[%clk 0:03:00]}  d5 {[%clk 0:02:58]} 2. h3 {[%clk 0:03:00]}  e5 {[%clk 0:02:57]} 3. Bg2 {[%clk 0:03:00]}  c6 {[%clk 0:02:58]} 4. d4 {[%clk 0:03:00]}  Bd6 {[%clk 0:02:49]} 5. c4 {[%clk 0:03:00]}  dxc4 {[%clk 0:02:45]} 6. dxe5 {[%clk 0:02:58]}  Bxe5 {[%clk 0:02:31]} 7. Qxd8+ {[%clk 0:02:57]}  Kxd8 {[%clk 0:02:32]} 8. Nf3 {[%clk 0:02:57]}  Bc7 {[%clk 0:02:22]} 9. Na3 {[%clk 0:02:50]}  Be6 {[%clk 0:01:54]} 10. Ng5 {[%clk 0:02:49]}  Ba5+ {[%clk 0:01:38]} 11. Bd2 {[%clk 0:02:40]}  Bxd2+ {[%clk 0:01:37]} 12. Kxd2 {[%clk 0:02:41]}  Ke7 {[%clk 0:01:31]} 13. Nxe6 {[%clk 0:02:40]}  fxe6 {[%clk 0:01:31]} 14. Nxc4 {[%clk 0:02:39]}  Na6 {[%clk 0:01:27]} 15. Kc3 {[%clk 0:02:36]}  Nf6 {[%clk 0:01:25]} 16. e4 {[%clk 0:02:36]}  g5 {[%clk 0:01:21]} 17. h4 {[%clk 0:01:48]}  Nc5 {[%clk 0:00:46]} 18. f3 {[%clk 0:01:39]}  h6 {[%clk 0:00:35]} 19. Ne5 {[%clk 0:01:27]}  Rhg8 {[%clk 0:00:34]} 20. hxg5 {[%clk 0:01:26]}  Rxg5 {[%clk 0:00:31]} 21. f4 {[%clk 0:00:58]}  Rxe5 {[%clk 0:00:28]} 22. fxe5 {[%clk 0:00:57]}  Nxg4 {[%clk 0:00:29]} 23. Rh4 {[%clk 0:00:49]}  Nxe5 {[%clk 0:00:26]} 24. Rxh6 {[%clk 0:00:46]}  Rg8 {[%clk 0:00:25]} 25. Rh7+ {[%clk 0:00:46]}  Kd6 {[%clk 0:00:26]} 26. Rd1+ {[%clk 0:00:42]}  Ncd3 {[%clk 0:00:24]} 27. Bf1 {[%clk 0:00:40]}  Rg3 {[%clk 0:00:19]} 28. Bxd3 {[%clk 0:00:38]}  c5 {[%clk 0:00:15]} 29. Kc2 {[%clk 0:00:24]}  Kc6 {[%clk 0:00:16]} 30. Rh6 {[%clk 0:00:20]}  c4 {[%clk 0:00:15]} 31. Rxe6+ {[%clk 0:00:18]}  Kc7 {[%clk 0:00:12]} 32. Rxe5 {[%clk 0:00:18]} 1-0


[Site "https://www.chess.com"]

[Event "Titled Tuesday Blitz July 6 2021"]
[White "Zhigalko, Sergei"]
[Black "Siva Mahadevan"]
[WhiteFideId "13502956"]
[BlackFideId "25043153"]
[WhiteElo "2662"]
[BlackElo "2203"]
[Result "1-0"]
[Round "09"]
[TimeControl "180+1"]
[Date "2021.07.06"]
[WhiteClock "0:00:02"]
[BlackClock "0:00:07"]

1. e4 {[%clk 0:03:00]}  c5 {[%clk 0:03:00]} 2. Nf3 {[%clk 0:02:59]}  d6 {[%clk 0:03:00]} 3. d4 {[%clk 0:02:59]}  cxd4 {[%clk 0:03:01]} 4. Qxd4 {[%clk 0:03:00]}  Nc6 {[%clk 0:02:59]} 5. Bb5 {[%clk 0:03:00]}  Bd7 {[%clk 0:02:59]} 6. Bxc6 {[%clk 0:03:01]}  Bxc6 {[%clk 0:03:00]} 7. Nc3 {[%clk 0:03:01]}  h6 {[%clk 0:02:59]} 8. Qd3 {[%clk 0:03:01]}  e5 {[%clk 0:02:59]} 9. Nd2 {[%clk 0:03:02]}  Nf6 {[%clk 0:02:58]} 10. Nc4 {[%clk 0:03:02]}  Be7 {[%clk 0:02:27]} 11. Ne3 {[%clk 0:03:01]}  O-O {[%clk 0:02:28]} 12. O-O {[%clk 0:02:52]}  Re8 {[%clk 0:02:11]} 13. Nf5 {[%clk 0:02:47]}  Bf8 {[%clk 0:02:12]} 14. Rd1 {[%clk 0:02:47]}  Qd7 {[%clk 0:02:02]} 15. Qg3 {[%clk 0:02:22]}  Kh7 {[%clk 0:01:38]} 16. f3 {[%clk 0:01:13]}  d5 {[%clk 0:01:37]} 17. Qh4 {[%clk 0:01:10]}  Qe6 {[%clk 0:01:26]} 18. exd5 {[%clk 0:00:54]}  Qxf5 {[%clk 0:01:14]} 19. dxc6 {[%clk 0:00:54]}  bxc6 {[%clk 0:01:15]} 20. Ne4 {[%clk 0:00:46]}  Nd5 {[%clk 0:01:15]} 21. c4 {[%clk 0:00:38]}  Nb6 {[%clk 0:01:14]} 22. b3 {[%clk 0:00:35]}  Qg6 {[%clk 0:01:11]} 23. Be3 {[%clk 0:00:21]}  f5 {[%clk 0:01:09]} 24. Nf2 {[%clk 0:00:20]}  Be7 {[%clk 0:01:08]} 25. Qh3 {[%clk 0:00:16]}  Rad8 {[%clk 0:01:07]} 26. Re1 {[%clk 0:00:12]}  Bf6 {[%clk 0:00:46]} 27. Rad1 {[%clk 0:00:12]}  Kg8 {[%clk 0:00:37]} 28. Kh1 {[%clk 0:00:09]}  Nc8 {[%clk 0:00:34]} 29. Kg1 {[%clk 0:00:09]}  a5 {[%clk 0:00:34]} 30. Bc5 {[%clk 0:00:08]}  Kh7 {[%clk 0:00:31]} 31. Nd3 {[%clk 0:00:07]}  Nd6 {[%clk 0:00:21]} 32. Bb6 {[%clk 0:00:06]}  Ra8 {[%clk 0:00:18]} 33. Bc7 {[%clk 0:00:04]}  Nf7 {[%clk 0:00:17]} 34. Bb6 {[%clk 0:00:05]}  a4 {[%clk 0:00:17]} 35. b4 {[%clk 0:00:04]}  a3 {[%clk 0:00:18]} 36. Be3 {[%clk 0:00:03]}  Rad8 {[%clk 0:00:17]} 37. Qg3 {[%clk 0:00:03]}  Bg5 {[%clk 0:00:15]} 38. Bxg5 {[%clk 0:00:03]}  hxg5 {[%clk 0:00:15]} 39. Nc5 {[%clk 0:00:03]}  Qf6 {[%clk 0:00:14]} 40. Qf2 {[%clk 0:00:03]}  Kg8 {[%clk 0:00:15]} 41. h3 {[%clk 0:00:03]}  Nd6 {[%clk 0:00:15]} 42. Qe2 {[%clk 0:00:03]}  Qf7 {[%clk 0:00:15]} 43. Rc1 {[%clk 0:00:02]}  Nc8 {[%clk 0:00:15]} 44. Red1 {[%clk 0:00:02]}  Nb6 {[%clk 0:00:16]} 45. Rxd8 {[%clk 0:00:02]}  Rxd8 {[%clk 0:00:16]} 46. Qxe5 {[%clk 0:00:03]}  Nxc4 {[%clk 0:00:17]} 47. Qe2 {[%clk 0:00:03]}  Nb6 {[%clk 0:00:17]} 48. Rc3 {[%clk 0:00:03]}  Nd5 {[%clk 0:00:18]} 49. Rxa3 {[%clk 0:00:03]}  Nxb4 {[%clk 0:00:18]} 50. Re3 {[%clk 0:00:04]}  Nd5 {[%clk 0:00:18]} 51. Re5 {[%clk 0:00:03]}  Qa7 {[%clk 0:00:18]} 52. Qc4 {[%clk 0:00:02]}  g6 {[%clk 0:00:18]} 53. Kh1 {[%clk 0:00:02]}  Rb8 {[%clk 0:00:18]} 54. Re1 {[%clk 0:00:02]}  Rb4 {[%clk 0:00:17]} 55. Qc2 {[%clk 0:00:01]}  Rb5 {[%clk 0:00:17]} 56. Ne6 {[%clk 0:00:01]}  Qa5 {[%clk 0:00:13]} 57. Rd1 {[%clk 0:00:01]}  Qb6 {[%clk 0:00:10]} 58. Rc1 {[%clk 0:00:01]}  Rb2 {[%clk 0:00:06]} 59. Qxc6 {[%clk 0:00:02]}  Qxc6 {[%clk 0:00:07]} 60. Rxc6 {[%clk 0:00:02]}  Ne3 {[%clk 0:00:08]} 61. Nxg5 {[%clk 0:00:02]}  Kg7 {[%clk 0:00:07]} 62. Ne6+ {[%clk 0:00:02]}  Kh6 {[%clk 0:00:06]} 63. Nf4 {[%clk 0:00:02]}  Kg5 {[%clk 0:00:07]} 64. g3 {[%clk 0:00:02]}  Rxa2 {[%clk 0:00:07]} 65. Rxg6# {[%clk 0:00:02]} 1-0


[Site "https://www.chess.com"]

[Event "Titled Tuesday Blitz July 6 2021"]
[White "Zubov, Alexander"]
[Black "Kamsky, Gata"]
[WhiteFideId "14109409"]
[BlackFideId "2000024"]
[WhiteElo "2740"]
[BlackElo "2644"]
[Result "1-0"]
[Round "09"]
[TimeControl "180+1"]
[Date "2021.07.06"]
[WhiteClock "0:00:07"]
[BlackClock "0:00:05"]

1. d4 {[%clk 0:03:00]}  d5 {[%clk 0:02:58]} 2. c4 {[%clk 0:03:00]}  c6 {[%clk 0:02:57]} 3. Nf3 {[%clk 0:02:59]}  Nf6 {[%clk 0:02:57]} 4. Qb3 {[%clk 0:02:59]}  g6 {[%clk 0:02:48]} 5. Bf4 {[%clk 0:02:58]}  Bg7 {[%clk 0:02:43]} 6. e3 {[%clk 0:02:58]}  O-O {[%clk 0:02:04]} 7. Nc3 {[%clk 0:02:57]}  dxc4 {[%clk 0:01:49]} 8. Bxc4 {[%clk 0:02:57]}  Nbd7 {[%clk 0:01:49]} 9. O-O {[%clk 0:02:52]}  Nb6 {[%clk 0:01:48]} 10. Be2 {[%clk 0:02:52]}  Be6 {[%clk 0:01:48]} 11. Qc2 {[%clk 0:02:49]}  Bc4 {[%clk 0:01:46]} 12. e4 {[%clk 0:02:43]}  Bxe2 {[%clk 0:01:44]} 13. Qxe2 {[%clk 0:02:39]}  Qd7 {[%clk 0:01:37]} 14. h3 {[%clk 0:02:36]}  Rfd8 {[%clk 0:01:37]} 15. Rad1 {[%clk 0:02:34]}  Qe6 {[%clk 0:01:30]} 16. b3 {[%clk 0:02:26]}  Nh5 {[%clk 0:01:27]} 17. Be3 {[%clk 0:02:07]}  Nf6 {[%clk 0:01:16]} 18. Ng5 {[%clk 0:02:04]}  Qc8 {[%clk 0:01:14]} 19. Qc2 {[%clk 0:01:57]}  Ne8 {[%clk 0:01:05]} 20. a4 {[%clk 0:01:49]}  Nd7 {[%clk 0:01:03]} 21. a5 {[%clk 0:01:26]}  Nf8 {[%clk 0:00:57]} 22. b4 {[%clk 0:01:23]}  Ne6 {[%clk 0:00:56]} 23. Nf3 {[%clk 0:01:22]}  Nd6 {[%clk 0:00:55]} 24. Rfe1 {[%clk 0:01:17]}  Nc4 {[%clk 0:00:52]} 25. Bc1 {[%clk 0:01:14]}  Nc7 {[%clk 0:00:36]} 26. Ne2 {[%clk 0:01:07]}  Nd6 {[%clk 0:00:35]} 27. Ng3 {[%clk 0:01:05]}  Ndb5 {[%clk 0:00:33]} 28. Be3 {[%clk 0:01:01]}  Rd7 {[%clk 0:00:33]} 29. Rd3 {[%clk 0:00:55]}  Qe8 {[%clk 0:00:32]} 30. Red1 {[%clk 0:00:55]}  Rad8 {[%clk 0:00:32]} 31. h4 {[%clk 0:00:54]}  Na6 {[%clk 0:00:31]} 32. Qc4 {[%clk 0:00:50]}  Nd6 {[%clk 0:00:31]} 33. Qb3 {[%clk 0:00:51]}  Nb5 {[%clk 0:00:30]} 34. h5 {[%clk 0:00:47]}  e6 {[%clk 0:00:29]} 35. Bg5 {[%clk 0:00:44]}  f6 {[%clk 0:00:26]} 36. Be3 {[%clk 0:00:44]}  Qf7 {[%clk 0:00:26]} 37. e5 {[%clk 0:00:41]}  Rd5 {[%clk 0:00:24]} 38. h6 {[%clk 0:00:37]}  Bf8 {[%clk 0:00:23]} 39. Ne4 {[%clk 0:00:36]}  Be7 {[%clk 0:00:21]} 40. exf6 {[%clk 0:00:36]}  Bxf6 {[%clk 0:00:21]} 41. Ne5 {[%clk 0:00:37]}  Bxe5 {[%clk 0:00:19]} 42. dxe5 {[%clk 0:00:37]}  Nxb4 {[%clk 0:00:14]} 43. Nf6+ {[%clk 0:00:34]}  Kh8 {[%clk 0:00:14]} 44. Nxd5 {[%clk 0:00:29]}  Nxd5 {[%clk 0:00:14]} 45. Bg5 {[%clk 0:00:30]}  Rf8 {[%clk 0:00:14]} 46. Rf3 {[%clk 0:00:30]}  Qe8 {[%clk 0:00:13]} 47. Bf6+ {[%clk 0:00:24]}  Kg8 {[%clk 0:00:13]} 48. a6 {[%clk 0:00:25]}  bxa6 {[%clk 0:00:13]} 49. Ra1 {[%clk 0:00:21]}  Qc8 {[%clk 0:00:12]} 50. Qc4 {[%clk 0:00:20]}  Qb7 {[%clk 0:00:11]} 51. Qg4 {[%clk 0:00:17]}  Nbc7 {[%clk 0:00:10]} 52. Bg7 {[%clk 0:00:17]}  Rf5 {[%clk 0:00:10]} 53. Rxf5 {[%clk 0:00:16]}  exf5 {[%clk 0:00:11]} 54. Qc4 {[%clk 0:00:15]}  Qb6 {[%clk 0:00:09]} 55. e6 {[%clk 0:00:13]}  Nxe6 {[%clk 0:00:09]} 56. Re1 {[%clk 0:00:11]}  Kf7 {[%clk 0:00:09]} 57. Qe2 {[%clk 0:00:09]}  c5 {[%clk 0:00:09]} 58. Qe5 {[%clk 0:00:09]}  Qc6 {[%clk 0:00:09]} 59. Rd1 {[%clk 0:00:09]}  Nd4 {[%clk 0:00:07]} 60. Qb8 {[%clk 0:00:07]}  Ne7 {[%clk 0:00:06]} 61. Bxd4 {[%clk 0:00:07]}  cxd4 {[%clk 0:00:05]} 62. Qe5 {[%clk 0:00:07]}  Qd5 {[%clk 0:00:05]} 63. Qg7+ {[%clk 0:00:07]}  Ke6 {[%clk 0:00:05]} 64. Re1+ {[%clk 0:00:07]} 1-0


[Site "https://www.chess.com"]

[Event "Titled Tuesday Blitz July 6 2021"]
[White "Bilych, Olexiy"]
[Black "Saravana, Krishnan P."]
[WhiteFideId "14156504"]
[BlackFideId "5018382"]
[WhiteElo "2246"]
[BlackElo "2245"]
[Result "1-0"]
[Round "10"]
[TimeControl "180+1"]
[Date "2021.07.06"]
[WhiteClock "0:00:32"]
[BlackClock "0:00:18"]

1. c4 {[%clk 0:02:55]}  e5 {[%clk 0:02:57]} 2. Nc3 {[%clk 0:02:55]}  Nf6 {[%clk 0:02:56]} 3. g3 {[%clk 0:02:55]}  Bc5 {[%clk 0:02:55]} 4. Bg2 {[%clk 0:02:55]}  O-O {[%clk 0:02:55]} 5. e3 {[%clk 0:02:55]}  d6 {[%clk 0:02:55]} 6. Nge2 {[%clk 0:02:55]}  c6 {[%clk 0:02:55]} 7. d4 {[%clk 0:02:54]}  Bb6 {[%clk 0:02:55]} 8. O-O {[%clk 0:02:52]}  Qe7 {[%clk 0:02:55]} 9. Qc2 {[%clk 0:02:49]}  Re8 {[%clk 0:02:53]} 10. Bd2 {[%clk 0:02:16]}  Nbd7 {[%clk 0:02:51]} 11. Rae1 {[%clk 0:02:16]}  Nf8 {[%clk 0:02:49]} 12. b3 {[%clk 0:02:12]}  Ng6 {[%clk 0:02:46]} 13. f4 {[%clk 0:02:04]}  h5 {[%clk 0:02:08]} 14. h3 {[%clk 0:01:54]}  h4 {[%clk 0:02:02]} 15. g4 {[%clk 0:01:53]}  Nh7 {[%clk 0:01:35]} 16. f5 {[%clk 0:01:32]}  Ngf8 {[%clk 0:01:32]} 17. Na4 {[%clk 0:01:30]}  Bc7 {[%clk 0:01:31]} 18. e4 {[%clk 0:01:25]}  exd4 {[%clk 0:01:16]} 19. Nxd4 {[%clk 0:01:24]}  Nd7 {[%clk 0:01:15]} 20. Bf4 {[%clk 0:01:20]}  Ne5 {[%clk 0:01:14]} 21. Nc3 {[%clk 0:01:19]}  Ng5 {[%clk 0:01:07]} 22. Qd2 {[%clk 0:01:17]}  f6 {[%clk 0:01:03]} 23. Kh1 {[%clk 0:01:15]}  Bd7 {[%clk 0:01:02]} 24. Rd1 {[%clk 0:01:01]}  Nef7 {[%clk 0:01:02]} 25. Qf2 {[%clk 0:01:00]}  Bb6 {[%clk 0:01:01]} 26. Qxh4 {[%clk 0:00:59]}  Ba5 {[%clk 0:00:56]} 27. Nde2 {[%clk 0:00:56]}  Rad8 {[%clk 0:00:50]} 28. Qg3 {[%clk 0:00:55]}  d5 {[%clk 0:00:44]} 29. cxd5 {[%clk 0:00:51]}  cxd5 {[%clk 0:00:44]} 30. Nxd5 {[%clk 0:00:51]}  Qa3 {[%clk 0:00:43]} 31. Nec3 {[%clk 0:00:47]}  Bc6 {[%clk 0:00:41]} 32. h4 {[%clk 0:00:42]}  Nxe4 {[%clk 0:00:31]} 33. Nxe4 {[%clk 0:00:32]}  Bxd5 {[%clk 0:00:19]} 34. Nxf6+ {[%clk 0:00:33]}  gxf6 {[%clk 0:00:20]} 35. Rxd5 {[%clk 0:00:33]}  Rxd5 {[%clk 0:00:19]} 36. Bxd5 {[%clk 0:00:34]}  Qxa2 {[%clk 0:00:18]} 37. g5 {[%clk 0:00:34]}  Kf8 {[%clk 0:00:18]} 38. gxf6 {[%clk 0:00:32]} 1-0


[Site "https://www.chess.com"]

[Event "Titled Tuesday Blitz July 6 2021"]
[White "Bluebaum, Matthias"]
[Black "Grischuk, Alexander"]
[WhiteFideId "24651516"]
[BlackFideId "4126025"]
[WhiteElo "2685"]
[BlackElo "2765"]
[Result "1/2-1/2"]
[Round "10"]
[TimeControl "180+1"]
[Date "2021.07.06"]
[WhiteClock "0:00:17"]
[BlackClock "0:00:04"]

1. d4 {[%clk 0:03:00]}  Nf6 {[%clk 0:03:00]} 2. c4 {[%clk 0:03:01]}  e6 {[%clk 0:03:00]} 3. Nc3 {[%clk 0:03:02]}  Bb4 {[%clk 0:03:01]} 4. e3 {[%clk 0:03:02]}  O-O {[%clk 0:03:01]} 5. Bd2 {[%clk 0:03:03]}  d5 {[%clk 0:03:01]} 6. Nf3 {[%clk 0:03:03]}  Be7 {[%clk 0:03:00]} 7. Rc1 {[%clk 0:03:04]}  Nbd7 {[%clk 0:03:00]} 8. Qc2 {[%clk 0:02:45]}  a6 {[%clk 0:02:59]} 9. e4 {[%clk 0:02:44]}  dxe4 {[%clk 0:02:35]} 10. Nxe4 {[%clk 0:02:45]}  Nxe4 {[%clk 0:02:34]} 11. Qxe4 {[%clk 0:02:46]}  c5 {[%clk 0:02:35]} 12. Bc3 {[%clk 0:02:34]}  cxd4 {[%clk 0:02:26]} 13. Nxd4 {[%clk 0:02:34]}  Nc5 {[%clk 0:02:20]} 14. Qc2 {[%clk 0:02:28]}  e5 {[%clk 0:01:30]} 15. Nf5 {[%clk 0:02:28]}  Bg5 {[%clk 0:01:30]} 16. Rd1 {[%clk 0:02:27]}  Qf6 {[%clk 0:01:31]} 17. Ng3 {[%clk 0:02:14]}  Qc6 {[%clk 0:01:19]} 18. b4 {[%clk 0:02:00]}  Ne6 {[%clk 0:01:19]} 19. Qe4 {[%clk 0:02:00]}  Nd4 {[%clk 0:00:52]} 20. Bd3 {[%clk 0:01:57]}  f5 {[%clk 0:00:49]} 21. Qxc6 {[%clk 0:01:57]}  Nxc6 {[%clk 0:00:50]} 22. O-O {[%clk 0:01:47]}  e4 {[%clk 0:00:47]} 23. Bc2 {[%clk 0:01:45]}  Be6 {[%clk 0:00:48]} 24. Bb3 {[%clk 0:01:44]}  Rad8 {[%clk 0:00:46]} 25. a4 {[%clk 0:01:41]}  g6 {[%clk 0:00:42]} 26. b5 {[%clk 0:01:41]}  axb5 {[%clk 0:00:43]} 27. axb5 {[%clk 0:01:42]}  Nb8 {[%clk 0:00:40]} 28. Ba5 {[%clk 0:01:39]}  Rxd1 {[%clk 0:00:34]} 29. Rxd1 {[%clk 0:01:40]}  Rc8 {[%clk 0:00:34]} 30. Ne2 {[%clk 0:01:27]}  Bxc4 {[%clk 0:00:28]} 31. Bxc4+ {[%clk 0:01:22]}  Rxc4 {[%clk 0:00:29]} 32. Bd8 {[%clk 0:01:19]}  Bh6 {[%clk 0:00:23]} 33. Bf6 {[%clk 0:01:15]}  Rc8 {[%clk 0:00:23]} 34. h4 {[%clk 0:01:10]}  Bf8 {[%clk 0:00:22]} 35. Nf4 {[%clk 0:01:05]}  Kf7 {[%clk 0:00:15]} 36. Be5 {[%clk 0:01:05]}  Ke8 {[%clk 0:00:15]} 37. Nd5 {[%clk 0:00:57]}  Nd7 {[%clk 0:00:08]} 38. Nc7+ {[%clk 0:00:58]}  Ke7 {[%clk 0:00:08]} 39. Bf4 {[%clk 0:00:59]}  Nc5 {[%clk 0:00:05]} 40. Nd5+ {[%clk 0:00:55]}  Kf7 {[%clk 0:00:06]} 41. Nb6 {[%clk 0:00:55]}  Re8 {[%clk 0:00:05]} 42. Nc4 {[%clk 0:00:52]}  Nd3 {[%clk 0:00:05]} 43. Bc7 {[%clk 0:00:47]}  Bc5 {[%clk 0:00:03]} 44. Kf1 {[%clk 0:00:46]}  Ke6 {[%clk 0:00:03]} 45. b6 {[%clk 0:00:41]}  Bd4 {[%clk 0:00:02]} 46. Na5 {[%clk 0:00:41]}  Kd5 {[%clk 0:00:02]} 47. Nxb7 {[%clk 0:00:41]}  Bxb6 {[%clk 0:00:01]} 48. Bxb6 {[%clk 0:00:41]}  Kc6 {[%clk 0:00:02]} 49. Nc5 {[%clk 0:00:19]}  Nxc5 {[%clk 0:00:02]} 50. Bxc5 {[%clk 0:00:20]}  Kxc5 {[%clk 0:00:03]} 51. Rd7 {[%clk 0:00:21]}  h5 {[%clk 0:00:03]} 52. Ke2 {[%clk 0:00:21]}  f4 {[%clk 0:00:03]} 53. Rf7 {[%clk 0:00:20]}  Kd4 {[%clk 0:00:03]} 54. Rxf4 {[%clk 0:00:20]}  Ke5 {[%clk 0:00:03]} 55. Rf7 {[%clk 0:00:20]}  Ra8 {[%clk 0:00:03]} 56. g3 {[%clk 0:00:19]}  Ra2+ {[%clk 0:00:03]} 57. Kf1 {[%clk 0:00:20]}  Ke6 {[%clk 0:00:03]} 58. Rf8 {[%clk 0:00:20]}  Rb2 {[%clk 0:00:03]} 59. Rf4 {[%clk 0:00:18]}  Ke5 {[%clk 0:00:03]} 60. Rf8 {[%clk 0:00:19]}  Ke6 {[%clk 0:00:04]} 61. Ke1 {[%clk 0:00:18]}  Ra2 {[%clk 0:00:04]} 62. Kf1 {[%clk 0:00:17]}  Rb2 {[%clk 0:00:04]} 1/2-1/2


[Site "https://www.chess.com"]

[Event "Titled Tuesday Blitz July 6 2021"]
[White "Chen, Max"]
[Black "Khalafova, Narmin"]
[WhiteFideId "2622440"]
[BlackFideId "13402625"]
[WhiteElo "2485"]
[BlackElo "2109"]
[Result "1-0"]
[Round "10"]
[TimeControl "180+1"]
[Date "2021.07.06"]
[WhiteClock "0:01:13"]
[BlackClock "0:00:39"]

1. e4 {[%clk 0:03:00]}  c5 {[%clk 0:02:53]} 2. c3 {[%clk 0:03:00]}  d6 {[%clk 0:02:52]} 3. d4 {[%clk 0:02:58]}  Nf6 {[%clk 0:02:41]} 4. Bd3 {[%clk 0:02:55]}  Nc6 {[%clk 0:02:36]} 5. Nf3 {[%clk 0:02:40]}  g6 {[%clk 0:02:33]} 6. O-O {[%clk 0:02:38]}  Bg7 {[%clk 0:02:33]} 7. d5 {[%clk 0:02:29]}  Ne5 {[%clk 0:02:30]} 8. Nxe5 {[%clk 0:02:29]}  dxe5 {[%clk 0:02:30]} 9. f3 {[%clk 0:02:21]}  O-O {[%clk 0:02:28]} 10. Be3 {[%clk 0:02:21]}  Qc7 {[%clk 0:02:21]} 11. a4 {[%clk 0:02:17]}  c4 {[%clk 0:02:11]} 12. Be2 {[%clk 0:01:50]}  b6 {[%clk 0:02:04]} 13. Na3 {[%clk 0:01:44]}  Ba6 {[%clk 0:01:59]} 14. b3 {[%clk 0:01:39]}  cxb3 {[%clk 0:01:50]} 15. Bxa6 {[%clk 0:01:35]}  b2 {[%clk 0:01:50]} 16. Rb1 {[%clk 0:01:29]}  Qxc3 {[%clk 0:01:50]} 17. Qd3 {[%clk 0:01:29]}  Qa5 {[%clk 0:01:20]} 18. Bb5 {[%clk 0:01:24]}  Qb4 {[%clk 0:00:51]} 19. Nc4 {[%clk 0:01:23]}  Nd7 {[%clk 0:00:39]} 20. Rxb2 {[%clk 0:01:16]}  Nc5 {[%clk 0:00:39]} 21. Qc2 {[%clk 0:01:13]} 1-0


[Site "https://www.chess.com"]